bitfinex-derivatives/quotes_SOLF0:USTF0_20241127
["timestamp","ask_amount","ask_price","bid_price","bid_amount"]
[1732679876243,2.08,231.99,231.93,6.85635082]
[1732679876244,2.1562,231.97,231.93,6.85635082]
[1732679876444,2.1562,231.97,231.85,1.3089]
[1732679876445,2.1562,231.97,231.91,6.85635082]
[1732679876943,2.1563,231.96,231.91,6.85635082]
[1732679877137,2.08,231.99,231.85,1.3089]
[1732679877340,2.08,231.99,231.91,6.85635082]
[1732679877845,2.1563,231.96,231.91,6.85635082]
[1732679878236,6.85635082,231.98,231.89,2.1569]
[1732679878440,6.85635082,231.98,231.9,6.85635082]
[1732679878839,2.1564,231.95,231.89,2.1569]
[1732679879045,2.1564,231.95,231.91,6.85635082]
[1732679880443,2.1564,231.95,231.91,9.01305082]
[1732679880941,2.1562,231.97,231.93,6.85635082]
[1732679881144,2.08,231.99,231.91,2.1567]
[1732679881343,2.08,231.99,231.92,6.85635082]
[1732679881842,2.08,231.99,231.93,6.85635082]
[1732679882142,2.1562,231.97,231.93,6.85635082]
[1732679882945,2.1563,231.96,231.93,6.85635082]
[1732679883243,2.1563,231.96,231.91,2.1567]
[1732679883244,2.1563,231.96,231.91,9.01305082]
[1732679884247,1.2413,232.03,231.95,6.85635082]
[1732679884541,2.08,232.05,232.02,6.85635082]
[1732679884747,2.1555,232.05,232.02,6.85635082]
[1732679884952,2.08,232.08,232.02,6.85635082]
[1732679885540,2.1554,232.06,232.02,6.85635082]
[1732679885940,2.08,232.08,232.04,6.85635082]
[1732679886144,2.1551,232.09,232.04,6.85635082]
[1732679886451,2.1551,232.09,232.06,6.85635082]
[1732679887150,2.08,232.11,232.06,6.85635082]
[1732679887349,2.1551,232.08,232.06,6.85635082]
[1732679887551,2.1551,232.08,232.04,6.85635082]
[1732679887751,6.85635082,232.09,231.95,3.3168]
[1732679887948,6.85635082,232.07,232.0,6.85635082]
[1732679888247,6.85635082,232.01,231.84,18.0044024]
[1732679888448,6.85635082,231.99,231.92,6.85635082]
[1732679888653,6.85635082,231.99,231.86,3.383]
[1732679888850,6.85635082,231.99,231.91,6.85635082]
[1732679890247,2.08,232.02,231.95,6.85635082]
[1732679890452,8.93635082,232.02,231.95,6.85635082]
[1732679890854,2.156,231.99,231.95,6.85635082]
[1732679892056,2.1562,231.97,231.93,6.85635082]
[1732679892552,6.85635082,232.0,231.93,6.85635082]
[1732679892948,2.08,232.01,231.93,6.85635082]
[1732679893750,2.08,232.01,231.95,6.85635082]
[1732679895757,2.1561,231.98,231.95,6.85635082]
[1732679896258,2.08,232.01,231.93,6.85635082]
[1732679896453,2.1562,231.97,231.93,6.85635082]
[1732679896853,2.08,232.01,231.93,6.85635082]
[1732679897958,2.08,232.01,231.86,3.383]
[1732679898160,6.85635082,231.98,231.91,6.85635082]
[1732679898759,6.85635082,231.98,231.89,6.85635082]
[1732679899261,2.1566,231.92,231.87,2.1571]
[1732679899457,6.85635082,231.98,231.89,6.85635082]
[1732679899458,2.08,231.96,231.89,6.85635082]
[1732679901361,2.1565,231.93,231.89,6.85635082]
[1732679901560,2.08,231.96,231.89,6.85635082]
[1732679901955,2.1566,231.93,231.89,6.85635082]
[1732679902964,2.1566,231.92,231.89,6.85635082]
[1732679904563,2.1567,231.91,231.88,6.85635082]
[1732679904960,2.08,231.96,231.9,6.85635082]
[1732679905259,2.08,231.96,231.95,6.85635082]
[1732679905661,26.05943751,232.03,231.95,6.85635082]
[1732679905859,2.08,232.02,231.98,6.85635082]
[1732679906663,2.1561,231.98,231.96,6.85635082]
[1732679909067,2.08,232.02,231.96,6.85635082]
[1732679911167,12.02936915,232.02,231.96,6.85635082]
[1732679912069,2.08,232.02,231.96,6.85635082]
[1732679913069,2.156,232.0,231.96,6.85635082]
[1732679913271,2.08,232.02,231.96,6.85635082]
[1732679913465,9.95141785,232.04,231.96,6.85635082]
[1732679913671,2.08,232.01,231.96,6.85635082]
[1732679914366,2.156,231.99,231.96,6.85635082]
[1732679915466,2.1561,231.98,231.96,6.85635082]
[1732679917072,2.08,232.01,231.87,2.08]
[1732679917267,2.1562,231.97,231.95,6.85635082]
[1732679917468,2.08,232.01,231.95,6.85635082]
[1732679917669,2.08,232.01,231.97,6.85635082]
[1732679918478,2.156,231.99,231.97,6.85635082]
[1732679920074,2.156,231.99,231.95,6.85635082]
[1732679920974,2.1561,231.98,231.95,6.85635082]
[1732679922275,2.1562,231.97,231.91,2.1566]
[1732679922477,6.85635082,232.0,231.86,2.6339]
[1732679922778,6.85635082,232.0,231.9,6.85635082]
[1732679922974,6.85635082,232.0,231.86,4.7139]
[1732679923172,6.85635082,232.0,231.9,6.85635082]
[1732679923173,2.1566,231.92,231.9,6.85635082]
[1732679923372,2.08,231.96,231.86,4.7139]
[1732679923573,2.08,231.96,231.92,6.85635082]
[1732679923877,2.08,231.96,231.9,6.85635082]
[1732679924674,2.1567,231.91,231.89,6.85635082]
[1732679925677,2.08,231.96,231.89,6.85635082]
[1732679925880,2.08,231.96,231.92,6.85635082]
[1732679926970,2.08,231.96,231.9,6.85635082]
[1732679927479,2.1567,231.92,231.9,6.85635082]
[1732679929576,2.08,231.96,231.9,6.85635082]
[1732679929778,2.08,231.96,231.93,6.85635082]
[1732679930983,2.1564,231.94,231.91,6.85635082]
[1732679931679,2.1565,231.93,231.9,6.85635082]
[1732679931880,2.08,231.96,231.92,6.85635082]
[1732679932072,2.1565,231.94,231.89,2.1569]
[1732679932277,2.08,231.96,231.91,6.85635082]
[1732679933179,2.1564,231.95,231.91,6.85635082]
[1732679933380,2.08,231.96,231.91,6.85635082]
[1732679934281,2.1565,231.94,231.91,6.85635082]
[1732679934777,2.08,231.96,231.93,6.85635082]
[1732679935979,2.08,231.96,231.91,6.85635082]
[1732679936175,2.08,231.96,231.87,2.1571]
[1732679936382,2.08,231.96,231.85,1.248]
[1732679936383,2.08,231.96,231.88,6.85635082]
[1732679936682,2.1568,231.91,231.87,6.85635082]
[1732679937378,6.85635082,231.95,231.87,6.85635082]
[1732679937980,2.08,231.96,231.77,2.4834]
[1732679937981,6.85635082,231.93,231.77,2.4834]
[1732679938182,2.1569,231.89,231.85,6.85635082]
[1732679938373,8.93635082,231.91,231.78,1.256]
[1732679938579,2.08,231.9,231.78,1.256]
[1732679938877,2.08,231.9,231.83,6.85635082]
[1732679939278,2.1571,231.87,231.83,6.85635082]
[1732679940281,2.1571,231.87,231.83,9.01375082]
[1732679941284,2.1572,231.86,231.83,6.85635082]
[1732679942378,2.1572,231.86,231.85,6.85635082]
[1732679943784,2.08,231.9,231.85,6.85635082]
[1732679944283,6.85635082,231.93,231.87,6.85635082]
[1732679944488,2.1568,231.9,231.87,6.85635082]
[1732679948490,2.1569,231.89,231.87,6.85635082]
[1732679949089,2.1569,231.89,231.85,6.85635082]
[1732679951295,2.157,231.88,231.85,6.85635082]
[1732679951594,2.157,231.88,231.83,6.85635082]
[1732679952289,6.85635082,231.84,231.72,2.08]
[1732679952495,6.85635082,231.84,231.76,6.85635082]
[1732679952690,6.85635082,231.84,231.71,2.1457805]
[1732679952897,6.85635082,231.8,231.72,6.85635082]
[1732679953194,2.08,231.79,231.71,2.1457805]
[1732679953390,2.1584,231.74,231.7,6.85635082]
[1732679953788,8.93635082,231.74,231.59,1.3051]
[1732679953983,2.1586,231.71,231.66,6.85635082]
[1732679956593,2.1586,231.71,231.68,6.85635082]
[1732679958891,2.1586,231.71,231.65,2.1591]
[1732679959105,2.1586,231.71,231.67,6.85635082]
[1732679959300,2.08,231.74,231.67,6.85635082]
[1732679959301,2.1587,231.7,231.67,6.85635082]
[1732679959699,2.1587,231.7,231.64,2.1592]
[1732679959891,2.1587,231.7,231.68,6.85635082]
[1732679961605,2.1586,231.71,231.68,6.85635082]
[1732679961800,2.08,231.76,231.68,6.85635082]
[1732679961995,6.85635082,231.77,231.59,1.3051]
[1732679961996,2.08,231.75,231.59,1.3051]
[1732679962202,2.08,231.75,231.68,6.85635082]
[1732679962600,2.1585,231.72,231.68,6.85635082]
[1732679964604,6.85635082,231.7,231.58,0.26564]
[1732679964803,6.85635082,231.68,231.6,6.85635082]
[1732679965109,2.159,231.66,231.6,6.85635082]
[1732679965409,2.08,231.67,231.6,6.85635082]
[1732679966301,2.1592,231.64,231.6,6.85635082]
[1732679966699,6.85635082,231.64,231.58,0.26564]
[1732679966898,2.1595,231.62,231.58,0.26564]
[1732679967106,4.2395,231.62,231.58,0.26564]
[1732679967301,2.08,231.62,231.58,0.26564]
[1732679967506,2.1595,231.61,231.58,0.26564]
[1732679968004,2.08,231.62,231.59,6.85635082]
[1732679969506,2.08,231.62,231.58,2.42534]
[1732679969705,2.08,231.62,231.58,9.28169082]
[1732679969909,3.7575,231.74,231.61,2.1595]
[1732679970101,6.85635082,231.69,231.61,2.1595]
[1732679970304,6.85635082,231.69,231.62,6.85635082]
[1732679970503,2.08,231.68,231.62,6.85635082]
[1732679971206,2.159,231.67,231.62,6.85635082]
[1732679971408,2.08,231.67,231.62,6.85635082]
[1732679972000,2.08,231.67,231.6,2.1595]
[1732679972201,2.08,231.67,231.62,6.85635082]
[1732679972608,2.08,231.67,231.62,9.01565082]
[1732679972810,3.7575,231.74,231.64,6.85635082]
[1732679973013,3.7575,231.74,231.66,6.85635082]
[1732679973209,8.93635082,231.73,231.66,6.85635082]
[1732679973903,11.09485082,231.73,231.66,9.01535082]
[1732679974105,2.08,231.72,231.66,9.01535082]
[1732679974506,2.1586,231.71,231.66,6.85635082]
[1732679977411,2.08,231.72,231.67,2.1589]
[1732679978310,2.08,231.73,231.68,9.01515082]
[1732679978511,2.08,231.73,231.68,6.85635082]
[1732679978910,2.1583,231.75,231.69,2.1587]
[1732679979415,2.1583,231.75,231.68,6.85635082]
[1732679979715,2.1583,231.74,231.65,2.08]
[1732679979917,2.1583,231.74,231.68,6.85635082]
[1732679980914,2.1583,231.74,231.69,2.1587]
[1732679982011,2.1584,231.73,231.69,2.1587]
[1732679994116,2.1584,231.73,231.68,6.85635082]
[1732679994117,2.1583,231.74,231.7,2.1587]
[1732679994310,6.85635082,231.75,231.7,2.1587]
[1732679995215,2.1584,231.73,231.68,9.01515082]
[1732679995423,6.85635082,231.73,231.65,8.93635082]
[1732679995718,6.85635082,231.73,231.65,6.85635082]
[1732679997319,2.1587,231.7,231.65,9.01535082]
[1732679997716,6.85635082,231.69,231.61,8.08165082]
[1732679997920,2.1591,231.66,231.62,2.1594]
[1732679998514,2.1591,231.66,231.61,10.24115082]
[1732679998722,6.85635082,231.67,231.59,6.85635082]
[1732679999121,6.85635082,231.67,231.61,2.1594]
[1732680000323,2.1591,231.65,231.61,2.1594]
[1732680001625,2.08,231.7,231.61,9.01575082]
[1732680002125,2.08,231.7,231.63,2.1593]
[1732680002320,8.93635082,231.7,231.62,6.85635082]
[1732680002823,6.85635082,231.68,231.58,0.26564]
[1732680003031,2.08,231.7,231.59,6.85635082]
[1732680003320,2.08,231.7,231.6,2.1596]
[1732680003523,2.1591,231.65,231.59,6.85635082]
[1732680003716,2.1591,231.65,231.61,6.85635082]
[1732680004824,6.85635082,231.67,231.59,6.85635082]
[1732680005126,6.85635082,231.63,231.58,0.26564]
[1732680005322,2.08,231.62,231.58,0.26564]
[1732680005728,6.85635082,231.61,231.58,0.26564]
[1732680006128,2.1597,231.6,231.58,0.26564]
[1732680006826,6.85635082,231.61,231.52,6.85635082]
[1732680007126,2.16,231.56,231.52,6.85635082]
[1732680007733,2.1601,231.55,231.49,2.1606]
[1732680007939,2.1601,231.55,231.5,6.85635082]
[1732680008234,2.1603,231.53,231.48,6.85635082]
[1732680009136,2.1603,231.52,231.45,3.3984]
[1732680009335,6.85635082,231.55,231.46,6.85635082]
[1732680009835,1.78984,231.51,231.46,9.01725082]
[1732680010029,3.39644703,231.65,231.5,6.85635082]
[1732680010230,3.39644703,231.65,231.5,9.01675082]
[1732680010231,2.16,231.56,231.5,9.01675082]
[1732680010428,2.08,231.58,231.5,9.01675082]
[1732680011235,2.1601,231.55,231.5,9.01675082]
[1732680011438,2.08,231.58,231.51,2.1604]
[1732680011740,4.2398,231.59,231.52,6.85635082]
[1732680011933,1.2383,231.64,231.56,6.85635082]
[1732680012134,1.2383,231.64,231.58,6.85635082]
[1732680012340,2.08,231.66,231.6,6.85635082]
[1732680012638,6.85635082,231.68,231.6,6.85635082]
[1732680012837,4.239,231.67,231.62,6.85635082]
[1732680013039,2.08,231.67,231.63,2.1593]
[1732680013333,2.08,231.67,231.62,6.85635082]
[1732680013735,9.01525082,231.68,231.62,6.85635082]
[1732680013931,6.85635082,231.64,231.55,1.2559]
[1732680014139,6.85635082,231.66,231.59,6.85635082]
[1732680014431,6.85635082,231.62,231.56,2.1599]
[1732680014632,6.85635082,231.58,231.45,3.3063]
[1732680014834,6.85635082,231.58,231.49,6.85635082]
[1732680015042,9.01615082,231.58,231.51,2.1604]
[1732680015237,9.01615082,231.58,231.51,6.85635082]
[1732680016339,1.2423,231.62,231.48,10.75352313]
[1732680016543,10.75352313,231.66,231.51,10.75352313]
[1732680016740,2.08,231.65,231.52,2.08]
[1732680017950,4.2392,231.65,231.52,2.08]
[1732680018138,2.08,231.65,231.52,3.381]
[1732680018741,2.1592,231.64,231.59,2.1597]
[1732680020242,2.1594,231.62,231.57,2.1598]
[1732680023143,4.2393,231.64,231.59,2.1596]
[1732680023345,4.2393,231.64,231.54,10.75352313]
[1732680023543,2.1593,231.64,231.54,10.75352313]
[1732680023745,2.08,231.65,231.54,10.75352313]
[1732680024040,2.1593,231.63,231.54,10.75352313]
[1732680025248,2.1593,231.63,231.59,2.1597]
[1732680027143,4.2392,231.65,231.6,2.1596]
[1732680028251,1.2423,231.71,231.57,12.83352313]
[1732680028550,2.08,231.69,231.57,12.83352313]
[1732680028754,2.08,231.69,231.64,2.1592]
[1732680030255,2.08,231.69,231.65,2.1591]
[1732680031549,2.1586,231.71,231.66,2.159]
[1732680031753,2.08,231.72,231.6,10.75352313]
[1732680032253,2.1587,231.7,231.6,10.75352313]
[1732680033250,2.1589,231.68,231.6,10.75352313]
[1732680033950,2.1588,231.69,231.65,2.1591]
[1732680034352,48.57004094,231.75,231.62,2.08]
[1732680034548,2.08,231.74,231.62,2.08]
[1732680035051,2.08,231.74,231.68,2.1588]
[1732680035760,2.1584,231.73,231.63,10.75352313]
[1732680036755,2.1587,231.7,231.62,3.3208]
[1732680036963,2.08,231.74,231.65,2.1591]
[1732680037459,2.1585,231.72,231.65,2.1591]
[1732680037661,2.08,231.74,231.65,2.1591]
[1732680037860,10.75352313,231.72,231.63,2.1592]
[1732680038562,2.1589,231.68,231.63,2.1592]
[1732680039059,10.75352313,231.72,231.61,2.6378]
[1732680039257,10.75352313,231.69,231.54,10.75352313]
[1732680039452,10.75352313,231.69,231.52,1.3273]
[1732680039453,10.75352313,231.66,231.53,2.5829]
[1732680039653,10.75352313,231.66,231.56,2.16]
[1732680039654,2.08,231.65,231.56,2.16]
[1732680040651,2.08,231.65,231.55,2.16]
[1732680041057,10.75352313,231.63,231.53,1.2581]
[1732680041259,10.75352313,231.63,231.49,2.08]
[1732680041260,2.1598,231.58,231.49,2.08]
[1732680041456,10.75352313,231.63,231.49,2.08]
[1732680041862,10.75352313,231.63,231.53,2.1602]
[1732680042160,10.75352313,231.63,231.49,2.08]
[1732680042361,2.1597,231.59,231.52,2.1603]
[1732680042562,2.08,231.6,231.49,2.08]
[1732680044355,2.08,231.6,231.51,10.75352313]
[1732680044757,2.08,231.6,231.57,2.1599]
[1732680044965,2.08,231.6,231.51,10.75352313]
[1732680046366,4.2396,231.6,231.51,10.75352313]
[1732680046765,4.2396,231.6,231.54,2.1601]
[1732680047466,2.08,231.6,231.54,2.1601]
[1732680047667,2.1598,231.58,231.52,2.1603]
[1732680047862,2.1598,231.58,231.51,10.75352313]
[1732680048372,2.08,231.6,231.54,2.1601]
[1732680048775,2.08,231.6,231.51,10.75352313]
[1732680048968,2.1597,231.59,231.54,2.1601]
[1732680050362,2.08,231.6,231.48,10.75352313]
[1732680050669,2.16,231.56,231.51,2.1604]
[1732680050867,2.08,231.6,231.51,2.1604]
[1732680051073,2.1601,231.55,231.51,2.1604]
[1732680052171,2.5791,231.59,231.45,14.09162313]
[1732680052471,2.5791,231.59,231.48,2.1607]
[1732680052673,10.75352313,231.57,231.45,1.2581]
[1732680052973,10.75352313,231.57,231.43,38.31690044]
[1732680053171,2.1603,231.53,231.46,2.1608]
[1732680053466,2.08,231.53,231.46,2.1608]
[1732680054568,2.08,231.53,231.43,38.31690044]
[1732680054769,2.08,231.53,231.47,2.1608]
[1732680055175,2.1604,231.52,231.47,2.1608]
[1732680055368,2.08,231.53,231.43,38.31690044]
[1732680055672,2.08,231.58,231.49,10.75352313]
[1732680056365,2.08,231.6,231.49,10.75352313]
[1732680056874,2.1597,231.59,231.54,2.1602]
[1732680057271,2.08,231.6,231.54,2.1602]
[1732680058367,2.1598,231.58,231.54,2.1602]
[1732680059170,2.08,231.6,231.49,10.75352313]
[1732680059370,12.04132313,231.65,231.55,2.16]
[1732680059578,2.08,231.64,231.52,10.75352313]
[1732680061275,2.1596,231.6,231.56,2.16]
[1732680061675,2.08,231.64,231.52,10.75352313]
[1732680061973,2.08,231.66,231.55,10.75352313]
[1732680062172,2.08,231.66,231.58,10.75352313]
[1732680062776,2.08,231.66,231.56,2.08]
[1732680063377,2.1592,231.64,231.59,2.1596]
[1732680063680,2.08,231.66,231.52,12.83352313]
[1732680063871,2.08,231.66,231.55,10.75352313]
[1732680064976,2.08,231.66,231.58,10.75352313]
[1732680065577,2.08,231.69,231.58,10.75352313]
[1732680066171,2.08,231.69,231.63,2.1592]
[1732680068383,2.1589,231.68,231.63,2.1592]
[1732680068777,2.08,231.69,231.65,2.1591]
[1732680069475,4.2385,231.72,231.61,10.75352313]
[1732680069674,4.5963,231.73,231.64,10.75352313]
[1732680070075,2.08,231.73,231.64,10.75352313]
[1732680070281,10.75352313,231.8,231.64,10.75352313]
[1732680070483,2.08,231.79,231.64,10.75352313]
[1732680071075,4.238,231.78,231.72,2.1585]
[1732680071280,2.08,231.8,231.7,10.75352313]
[1732680071483,3.6929,231.83,231.7,10.75352313]
[1732680071684,2.08,231.82,231.7,10.75352313]
[1732680071979,2.08,231.82,231.73,10.75352313]
[1732680072382,10.75352313,231.89,231.73,12.83352313]
[1732680072578,2.08,231.87,231.73,12.83352313]
[1732680072776,10.75352313,231.86,231.73,2.08]
[1732680072977,2.08,231.85,231.73,2.08]
[1732680073377,1.253,231.84,231.7,10.75352313]
[1732680073885,10.75352313,231.83,231.69,2.5316]
[1732680074084,13.24052313,231.83,231.68,1.2667]
[1732680074278,10.75352313,231.77,231.66,2.159]
[1732680074483,2.08,231.76,231.66,2.159]
[1732680074679,2.08,231.76,231.64,10.75352313]
[1732680074876,2.1584,231.73,231.68,2.1588]
[1732680075283,13.24052313,231.83,231.67,10.75352313]
[1732680075582,2.08,231.82,231.67,10.75352313]
[1732680076086,2.158,231.78,231.67,12.83352313]
[1732680076487,2.158,231.78,231.7,2.1586]
[1732680076685,2.158,231.78,231.67,12.83352313]
[1732680077087,10.75352313,231.8,231.67,12.83352313]
[1732680078182,10.75352313,231.8,231.7,2.1587]
[1732680079284,2.1582,231.76,231.7,2.1587]
[1732680080686,12.83352313,231.77,231.62,2.5316]
[1732680080884,12.83352313,231.77,231.62,15.36512313]
[1732680081080,2.1585,231.72,231.62,15.36512313]
[1732680081285,2.1585,231.72,231.67,2.1589]
[1732680081483,2.08,231.77,231.67,2.1589]
[1732680082889,2.1586,231.71,231.65,2.159]
[1732680083086,12.83352313,231.77,231.65,2.159]
[1732680084383,2.1586,231.71,231.65,2.159]
[1732680085391,2.1586,231.71,231.66,2.159]
[1732680086292,2.1584,231.73,231.69,2.1588]
[1732680086690,2.487,231.83,231.71,10.75352313]
[1732680086885,2.1579,231.79,231.73,2.1584]
[1732680087087,2.08,231.82,231.74,10.75352313]
[1732680087494,2.08,231.82,231.74,12.91182313]
[1732680088092,2.08,231.82,231.74,2.1583]
[1732680088396,2.1578,231.8,231.74,2.1583]
[1732680088597,2.08,231.82,231.74,2.1583]
[1732680089199,2.08,231.82,231.72,2.1584]
[1732680089587,2.158,231.78,231.72,2.1584]
[1732680089995,2.158,231.78,231.73,2.1583]
[1732680090296,2.1578,231.8,231.71,10.75352313]
[1732680090495,2.08,231.82,231.75,2.1581]
[1732680091197,2.1577,231.8,231.74,10.75352313]
[1732680092297,2.1577,231.8,231.74,12.91182313]
[1732680093196,2.08,231.82,231.74,2.1583]
[1732680093389,2.1578,231.79,231.74,2.1583]
[1732680094500,2.1578,231.79,231.72,2.08]
[1732680094704,2.1578,231.79,231.73,2.1584]
[1732680096207,2.1578,231.79,231.74,2.1583]
[1732680097709,2.08,231.82,231.74,2.1583]
[1732680098009,2.1579,231.78,231.74,2.1583]
[1732680098411,2.08,231.82,231.72,2.08]
[1732680099201,2.1578,231.79,231.72,2.08]
[1732680099510,2.08,231.82,231.72,2.08]
[1732680100009,2.1582,231.76,231.72,2.08]
[1732680100212,2.08,231.82,231.71,10.75352313]
[1732680100406,2.1584,231.74,231.71,10.75352313]
[1732680100608,2.08,231.82,231.68,14.04522313]
[1732680102210,2.1584,231.74,231.69,2.1587]
[1732680103306,2.1584,231.74,231.68,14.04522313]
[1732680103507,1.253,231.84,231.72,10.75352313]
[1732680103811,1.253,231.84,231.77,10.75352313]
[1732680104401,1.253,231.84,231.8,6.86598458]
[1732680105310,2.1576,231.81,231.8,6.86598458]
[1732680105813,2.1574,231.84,231.8,6.86598458]
[1732680106008,2.08,231.88,231.82,6.86598458]
[1732680106203,1.2968,231.92,231.85,6.86598458]
[1732680106408,2.08,231.9,231.81,10.72370287]
[1732680107212,2.1571,231.88,231.81,12.88130287]
[1732680107420,1.2968,231.92,231.81,10.72370287]
[1732680107604,3.3768,231.92,231.81,10.72370287]
[1732680107910,2.1571,231.87,231.81,10.72370287]
[1732680108308,2.157,231.88,231.83,2.1574]
[1732680109207,2.1569,231.9,231.85,2.1572]
[1732680110107,2.1567,231.91,231.86,2.1572]
[1732680111620,2.1568,231.9,231.84,12.88100287]
[1732680112838,2.157,231.89,231.84,12.88100287]
[1732680113040,2.157,231.89,231.84,10.72370287]
[1732680115738,2.157,231.89,231.83,12.88120287]
[1732680116351,2.08,231.94,231.8,2.1577]
[1732680116536,2.08,231.94,231.82,10.72370287]
[1732680117128,2.08,231.94,231.83,2.1574]
[1732680117428,1.3013,231.98,231.85,10.72370287]
[1732680117621,2.08,231.97,231.85,10.72370287]
[1732680118123,10.72370287,231.96,231.83,2.08]
[1732680120527,10.72370287,231.96,231.83,4.2375]
[1732680121231,10.72370287,231.96,231.82,10.72370287]
[1732680122722,10.72370287,231.93,231.79,12.05550287]
[1732680122924,2.08,231.92,231.79,10.72370287]
[1732680123221,10.72370287,231.9,231.76,10.72370287]
[1732680123723,2.1573,231.86,231.76,10.72370287]
[1732680123924,2.08,231.86,231.76,10.72370287]
[1732680124429,2.1577,231.81,231.76,12.88180287]
[1732680125230,2.08,231.86,231.77,2.1579]
[1732680126023,2.08,231.86,231.76,10.72370287]
[1732680126225,2.08,231.86,231.78,2.1578]
[1732680126722,2.1572,231.86,231.78,2.1578]
[1732680126923,2.08,231.88,231.78,2.1578]
[1732680128128,2.1575,231.83,231.78,2.1578]
[1732680128432,2.08,231.88,231.81,6.86522035]
[1732680128620,2.08,231.88,231.83,6.86522035]
[1732680128828,2.1573,231.85,231.83,6.86522035]
[1732680129128,2.08,231.88,231.83,6.86522035]
[1732680129528,2.1571,231.87,231.83,6.86522035]
[1732680129723,4.624,231.89,231.83,6.86522035]
[1732680130119,2.1572,231.86,231.83,6.86522035]
[1732680130428,2.08,231.91,231.85,6.86522035]
[1732680130826,2.08,231.91,231.83,6.86522035]
[1732680131427,2.1569,231.89,231.83,6.86522035]
[1732680131630,2.08,231.91,231.83,6.86522035]
[1732680132825,2.1571,231.88,231.85,6.86522035]
[1732680133031,2.08,231.91,231.85,6.86522035]
[1732680133229,8.94522035,231.91,231.83,6.86522035]
[1732680133631,2.157,231.88,231.83,9.02262035]
[1732680134527,2.157,231.88,231.83,6.86522035]
[1732680134930,2.157,231.88,231.85,6.86522035]
[1732680135133,2.157,231.88,231.8,2.08]
[1732680135332,2.157,231.88,231.84,6.86522035]
[1732680135928,6.86522035,232.06,231.9,6.86522035]
[1732680136133,6.86522035,232.04,231.97,6.86522035]
[1732680136323,2.1557,232.02,231.97,6.86522035]
[1732680137331,2.43992,232.01,231.97,6.86522035]
[1732680138030,2.43992,232.01,231.95,2.1563]
[1732680138031,0.28412,232.01,231.95,6.86522035]
[1732680139237,2.156,231.99,231.95,6.86522035]
[1732680144133,6.86522035,232.04,231.95,6.86522035]
[1732680144333,6.86522035,231.96,231.88,8.94522035]
[1732680144837,2.1567,231.92,231.88,8.94522035]
[1732680145029,6.86522035,231.94,231.86,6.86522035]
[1732680145335,8.94522035,231.94,231.86,6.86522035]
[1732680145937,6.86522035,231.92,231.84,6.86522035]
[1732680146438,1.256,231.93,231.82,27.51585278]
[1732680147133,2.1571,231.87,231.82,27.51585278]
[1732680147437,1.256,231.93,231.82,29.67335278]
[1732680147842,2.1568,231.9,231.82,29.67335278]
[1732680148036,1.256,231.93,231.82,29.67335278]
[1732680148536,2.1568,231.9,231.82,29.67335278]
[1732680148735,1.256,231.93,231.82,29.67335278]
[1732680149430,2.157,231.88,231.82,29.67335278]
[1732680150642,2.157,231.88,231.83,2.1574]
[1732680150843,1.256,231.93,231.82,27.51585278]
[1732680151340,2.1569,231.89,231.83,2.1575]
[1732680151742,1.256,231.93,231.83,2.1575]
[1732680151939,2.157,231.88,231.83,2.1575]
[1732680156145,2.157,231.88,231.82,27.51585278]
[1732680156848,2.157,231.88,231.8,10.72512087]
[1732680157147,1.256,231.93,231.82,2.1575]
[1732680157538,1.256,231.93,231.83,10.72512087]
[1732680157749,1.256,231.93,231.86,10.72512087]
[1732680158047,2.08,231.96,231.86,10.72512087]
[1732680158443,2.1567,231.92,231.86,12.88222087]
[1732680159647,2.1567,231.91,231.86,12.88222087]
[1732680159849,2.1567,231.91,231.86,10.72512087]
[1732680162655,2.1568,231.9,231.86,10.72512087]